bitfinex/quotes_BTCUSD_20250614
["timestamp","ask_amount","ask_price","bid_price","bid_amount"]
[1749894191403,1.69379222,105060.0,105050.0,0.03769607]
[1749894191621,1.69379222,105060.0,105050.0,0.03769608]
[1749894193325,1.50047222,105060.0,105050.0,0.03769608]
[1749894193544,1.69375222,105060.0,105050.0,0.03769989]
[1749894193766,1.69375222,105060.0,105050.0,0.01985449]
[1749894193979,1.69375222,105060.0,105050.0,0.03769989]
[1749894194695,1.69375222,105060.0,105050.0,0.01985449]
[1749894194929,1.69375222,105060.0,105050.0,0.03769989]
[1749894195362,1.78990144,105060.0,105050.0,0.03769989]
[1749894196373,1.69375222,105060.0,105050.0,0.01985449]
[1749894196638,1.69375222,105060.0,105050.0,0.03769989]
[1749894196848,1.69375222,105060.0,105050.0,0.01985449]
[1749894197267,1.69375222,105060.0,105050.0,0.03769989]
[1749894198560,1.69375222,105060.0,105050.0,0.01985449]
[1749894198970,1.69375222,105060.0,105050.0,0.03769989]
[1749894199830,1.69375222,105060.0,105050.0,0.01985449]
[1749894200077,1.69375222,105060.0,105050.0,0.03769989]
[1749894200285,1.83008914,105060.0,105050.0,0.01985449]
[1749894200511,1.83008914,105060.0,105050.0,0.03770017]
[1749894200712,1.83008914,105060.0,105050.0,0.03770021]
[1749894200915,1.83008914,105060.0,105050.0,0.03770497]
[1749894201374,1.84828914,105060.0,105050.0,0.03770497]
[1749894201788,1.75213992,105060.0,105050.0,0.03770497]
[1749894201994,1.75213992,105060.0,105050.0,0.04663087]
[1749894202223,1.75213992,105060.0,105050.0,0.04663092]
[1749894202430,1.75213992,105060.0,105050.0,0.01985449]
[1749894202654,6.80213992,105060.0,105050.0,0.0466312]
[1749894202864,6.9945309,105060.0,105050.0,0.04663156]
[1749894203069,6.89838168,105060.0,105050.0,0.04663172]
[1749894203272,7.23838168,105060.0,105050.0,0.04663172]
[1749894203475,7.23838168,105060.0,105050.0,0.04663176]
[1749894203654,7.23838168,105060.0,105050.0,0.04663193]
[1749894203862,7.23838168,105060.0,105050.0,0.03770631]
[1749894204091,7.23838168,105060.0,105050.0,0.04663222]
[1749894204294,7.23838168,105060.0,105050.0,0.0466322]
[1749894204697,7.23838168,105060.0,105050.0,0.01985449]
[1749894204878,7.23838168,105060.0,105050.0,0.0466322]
[1749894205083,7.23838168,105060.0,105050.0,0.0377063]
[1749894205287,7.23838168,105060.0,105050.0,0.02878039]
[1749894205492,7.23838168,105060.0,105050.0,0.0377063]
[1749894205695,7.23838168,105060.0,105050.0,0.02878039]
[1749894205906,7.23838168,105060.0,105050.0,0.0466322]
[1749894206129,7.3345309,105060.0,105050.0,0.0466322]
[1749894206349,7.3345309,105060.0,105050.0,0.04659668]
[1749894206549,7.3345309,105060.0,105050.0,0.01985449]
[1749894206756,7.3345309,105060.0,105050.0,0.03768279]
[1749894207172,7.3345309,105060.0,105050.0,0.02876864]
[1749894207591,7.3345309,105060.0,105050.0,0.04659694]
[1749894207802,7.3345309,105060.0,105050.0,0.01985449]
[1749894208013,7.3345309,105060.0,105050.0,0.02876864]
[1749894208226,7.3345309,105060.0,105050.0,0.04659694]
[1749894208432,7.3345309,105060.0,105050.0,0.02876864]
[1749894208638,7.3345309,105060.0,105050.0,0.01985449]
[1749894208846,7.3345309,105060.0,105050.0,0.02876864]
[1749894209080,7.3345309,105060.0,105050.0,0.03768279]
[1749894209290,7.3345309,105060.0,105050.0,0.01985449]
[1749894209503,7.3345309,105060.0,105050.0,0.03768279]
[1749894209738,7.3345309,105060.0,105050.0,0.04659694]
[1749894209922,7.3345309,105060.0,105050.0,0.01985449]
[1749894210151,7.3345309,105060.0,105050.0,0.03768279]
[1749894210364,7.3345309,105060.0,105050.0,0.04659694]
[1749894210777,7.3345309,105060.0,105050.0,0.02876864]
[1749894210989,7.3345309,105060.0,105050.0,0.04659694]
[1749894212107,7.3631289,105060.0,105050.0,0.04659694]
[1749894213023,7.3631289,105060.0,105050.0,0.03768279]
[1749894213240,7.3631289,105060.0,105050.0,0.06442524]
[1749894214104,7.3631289,105060.0,105050.0,0.04659694]
[1749894214631,7.3631289,105060.0,105050.0,0.03768279]
[1749894216810,7.3631289,105060.0,105050.0,0.06442536]
[1749894217018,7.3631289,105060.0,105050.0,0.03768279]
[1749894217230,7.3631289,105060.0,105050.0,0.04659706]
[1749894217461,7.3631289,105060.0,105050.0,0.0644256]
[1749894217679,7.3631289,105060.0,105050.0,0.04657111]
[1749894217881,7.3631289,105060.0,105050.0,0.03765684]
[1749894218098,7.3631289,105060.0,105050.0,0.04657111]
[1749894218296,7.3631289,105060.0,105050.0,0.02874257]
[1749894218769,7.3631289,105060.0,105050.0,0.03765684]
[1749894218991,7.3631289,105060.0,105050.0,0.02874257]
[1749894219217,7.3631289,105060.0,105050.0,0.04657907]
[1749894219432,7.3631289,105060.0,105050.0,0.03766216]
[1749894219641,7.3631289,105060.0,105050.0,0.04657909]
[1749894219852,7.3631289,105060.0,105050.0,0.04657907]
[1749894220077,7.3631289,105060.0,105050.0,0.0198283]
[1749894220295,7.3631289,105060.0,105050.0,0.03766215]
[1749894220787,7.3631289,105060.0,105050.0,0.02874522]
[1749894221354,6.25302408,105060.0,105050.0,0.03766215]
[1749894221568,7.3631289,105060.0,105050.0,0.0198283]
[1749894221747,7.3631289,105060.0,105050.0,0.04657907]
[1749894222147,7.26697968,105060.0,105050.0,0.04657907]
[1749894222447,7.24877968,105060.0,105050.0,0.04657907]
[1749894222648,7.24877968,105060.0,105050.0,0.03766215]
[1749894222879,7.24877968,105060.0,105050.0,0.02874522]
[1749894223024,7.24877968,105060.0,105050.0,0.0198283]
[1749894223234,7.24877968,105060.0,105050.0,0.04657907]
[1749894223683,7.24877968,105060.0,105050.0,0.03766215]
[1749894223894,7.24877968,105060.0,105050.0,0.03768161]
[1749894224372,7.24877968,105060.0,105050.0,0.04660826]
[1749894224543,7.24877968,105060.0,105050.0,0.02875495]
[1749894224741,7.24877968,105060.0,105050.0,0.0198283]
[1749894224949,7.24877968,105060.0,105050.0,0.04660826]
[1749894225162,7.24877968,105060.0,105050.0,0.04660891]
[1749894225772,7.24877968,105060.0,105050.0,0.02875517]
[1749894225982,7.24877968,105060.0,105050.0,0.0198283]
[1749894226184,7.24877968,105060.0,105050.0,0.04660891]
[1749894226403,7.23137968,105060.0,105050.0,0.04660891]
[1749894227027,7.23137968,105060.0,105050.0,0.04660864]
[1749894227236,7.23137968,105060.0,105050.0,0.04660846]
[1749894227447,7.23137968,105060.0,105050.0,0.03768168]
[1749894227659,7.23137968,105060.0,105050.0,0.04660837]
[1749894228159,7.23137968,105060.0,105050.0,0.02875499]
[1749894228335,7.23137968,105060.0,105050.0,0.04660834]
[1749894228531,7.23137968,105060.0,105050.0,0.03768166]
[1749894228733,7.23137968,105060.0,105050.0,0.02875498]
[1749894228949,7.23137968,105060.0,105050.0,0.04660834]
[1749894229161,7.23137968,105060.0,105050.0,0.02875498]
[1749894229359,7.3275289,105060.0,105050.0,0.04660834]
[1749894229766,7.23137968,105060.0,105050.0,0.03768166]
[1749894230177,7.23137968,105060.0,105050.0,0.04660834]
[1749894231022,7.23137968,105060.0,105050.0,0.02875498]
[1749894231227,7.23137968,105060.0,105050.0,0.0198283]
[1749894231461,7.23137968,105060.0,105050.0,0.04660834]
[1749894231902,7.23137968,105060.0,105050.0,0.0198283]
[1749894232118,7.27513393,105060.0,105050.0,0.02875498]
[1749894232326,7.27513393,105060.0,105050.0,0.03768166]
[1749894232765,7.27513393,105060.0,105050.0,0.02875498]
[1749894232993,7.27513393,105060.0,105050.0,0.04660834]
[1749894233206,7.27513393,105060.0,105050.0,0.02875498]
[1749894233617,7.27513393,105060.0,105050.0,0.04660834]
[1749894234041,7.27513393,105060.0,105050.0,0.0198283]
[1749894234249,7.24653593,105060.0,105050.0,0.04660835]
[1749894234492,7.24653593,105060.0,105050.0,0.04660834]
[1749894235198,7.24653593,105060.0,105050.0,0.03768166]
[1749894235419,7.24653593,105060.0,105050.0,0.04660834]
[1749894236204,7.24653593,105060.0,105050.0,0.03768166]
[1749894236414,7.24653593,105060.0,105050.0,0.04661252]
[1749894237503,7.24653593,105060.0,105050.0,0.03768445]
[1749894237716,7.24653593,105060.0,105050.0,0.04661252]
[1749894237928,7.24653593,105060.0,105050.0,0.03768445]
[1749894238314,7.24653593,105060.0,105050.0,0.0198283]
[1749894238767,7.24653593,105060.0,105050.0,0.02875637]
[1749894238973,7.24653593,105060.0,105050.0,0.04661252]
[1749894239188,7.24653593,105060.0,105050.0,0.03768445]
[1749894239407,7.20278168,105060.0,105050.0,0.04661252]
[1749894239817,7.20278168,105060.0,105050.0,0.02875637]
[1749894240651,7.00278168,105060.0,105050.0,0.04660748]
[1749894241086,7.00278168,105060.0,105050.0,0.03768109]
[1749894241291,7.02118168,105060.0,105050.0,0.03768109]
[1749894241503,7.02118168,105060.0,105050.0,0.0198283]
[1749894241720,7.02118168,105060.0,105050.0,0.02875469]
[1749894241934,7.02118168,105060.0,105050.0,0.0198283]
[1749894242147,7.02118168,105060.0,105050.0,0.04660748]
[1749894242609,7.02118168,105060.0,105050.0,0.0198283]
[1749894242817,7.02118168,105060.0,105050.0,0.04660748]
[1749894243247,7.02118168,105060.0,105050.0,0.02875469]
[1749894243496,7.02118168,105060.0,105050.0,0.04660748]
[1749894243719,7.03910171,105060.0,105050.0,0.04660748]
[1749894244383,7.03910171,105060.0,105050.0,0.04660707]
[1749894244594,7.03910171,105060.0,105050.0,0.04660687]
[1749894244817,7.03910171,105060.0,105050.0,0.02875449]
[1749894245237,7.03910171,105060.0,105050.0,0.04660687]
[1749894245452,7.03910171,105060.0,105050.0,0.04660601]
[1749894246106,7.03910171,105060.0,105050.0,0.04660598]
[1749894246337,7.03910171,105060.0,105050.0,0.04660517]
[1749894246559,7.03910171,105060.0,105050.0,0.04660477]
[1749894246746,7.03910171,105060.0,105050.0,0.0287538]
[1749894246992,7.03910171,105060.0,105050.0,0.04660481]
[1749894247437,7.03910171,105060.0,105050.0,0.03767931]
[1749894247656,7.03910171,105060.0,105050.0,0.04660481]
[1749894248917,7.03910171,105060.0,105050.0,0.0287538]
[1749894249327,7.03910171,105060.0,105050.0,0.04660481]
[1749894249536,7.03910171,105060.0,105050.0,0.0287538]
[1749894249766,7.03910171,105060.0,105050.0,0.03767931]
[1749894250194,7.03910171,105060.0,105050.0,0.04660481]
[1749894250608,7.03910171,105060.0,105050.0,0.03767931]
[1749894250818,7.03910171,105060.0,105050.0,0.04660481]
[1749894251023,7.03910171,105060.0,105050.0,0.03767931]
[1749894251238,7.03910171,105060.0,105050.0,0.0198283]
[1749894251451,7.05610171,105060.0,105050.0,0.0198283]
[1749894251656,7.05610171,105060.0,105050.0,0.0376794]
[1749894251878,7.05610171,105060.0,105050.0,0.02875381]
[1749894252097,7.05610171,105060.0,105050.0,0.04660513]
[1749894252308,7.05610171,105060.0,105050.0,0.03767952]
[1749894252517,7.05610171,105060.0,105050.0,0.02875391]
[1749894252730,7.05610171,105060.0,105050.0,0.03767953]
[1749894252943,7.05610171,105060.0,105050.0,0.02875391]
[1749894253165,7.05610171,105060.0,105050.0,0.03767953]
[1749894253373,7.05610171,105060.0,105050.0,0.04660514]
[1749894253616,7.05610171,105060.0,105050.0,0.02875391]
[1749894253822,7.05610171,105060.0,105050.0,0.04660514]
[1749894254334,7.05610171,105060.0,105050.0,0.04660594]
[1749894254539,7.05610171,105060.0,105050.0,0.03768112]
[1749894254749,7.05610171,105060.0,105050.0,0.04660753]
[1749894255158,7.05610171,105060.0,105050.0,0.04660799]
[1749894255366,7.05610171,105060.0,105050.0,0.04660891]
[1749894255576,7.00278168,105060.0,105050.0,0.04660891]
[1749894255994,7.00278168,105060.0,105050.0,0.0198283]
[1749894256201,7.00278168,105060.0,105050.0,0.04660891]
[1749894257033,7.00278168,105060.0,105050.0,0.03768204]
[1749894257240,7.00278168,105060.0,105050.0,0.04660891]
[1749894257860,7.00278168,105060.0,105050.0,0.03768204]
[1749894258062,7.00278168,105060.0,105050.0,0.04660891]
[1749894258273,7.00278168,105060.0,105050.0,0.0198283]
[1749894258510,7.00278168,105060.0,105050.0,0.04660891]
[1749894258720,7.00278168,105060.0,105050.0,0.03768204]
[1749894258924,7.00278168,105060.0,105050.0,0.04660891]
[1749894259340,7.00278168,105060.0,105050.0,0.0198283]
[1749894259770,7.00278168,105060.0,105050.0,0.02875517]
[1749894259981,7.00278168,105060.0,105050.0,0.04660891]
[1749894260184,7.00278168,105060.0,105050.0,0.02875517]
[1749894260391,7.00278168,105060.0,105050.0,0.0198283]
[1749894260595,7.00278168,105060.0,105050.0,0.02875517]
[1749894261019,7.00278168,105060.0,105050.0,0.03768204]
[1749894261219,7.00278168,105060.0,105050.0,0.0198283]
[1749894261425,7.00278168,105060.0,105050.0,0.04660891]
[1749894261627,7.00278168,105060.0,105050.0,0.0198283]
[1749894261829,7.00278168,105060.0,105050.0,0.03768204]
[1749894262031,7.00278168,105060.0,105050.0,0.04660891]
[1749894262433,7.00278168,105060.0,105050.0,0.03768204]
[1749894262646,7.00278168,105060.0,105050.0,0.0198283]
[1749894263009,7.00278168,105060.0,105050.0,0.02875517]
[1749894263221,7.00278168,105060.0,105050.0,0.04660891]
[1749894263424,7.00278487,105060.0,105050.0,0.02875517]
[1749894263634,7.00278487,105060.0,105050.0,0.0198283]
[1749894263866,7.00278487,105060.0,105050.0,0.04660892]
[1749894264297,7.00278487,105060.0,105050.0,0.04660895]
[1749894265528,7.03389727,105060.0,105050.0,0.04660895]
[1749894265738,7.03389727,105060.0,105050.0,0.03768207]
[1749894265937,7.03389727,105060.0,105050.0,0.04660895]
[1749894266966,7.03389727,105060.0,105050.0,0.0198283]
[1749894267173,7.00278487,105060.0,105050.0,0.02875503]
[1749894267376,7.00278487,105060.0,105050.0,0.0466085]
[1749894267578,7.00278487,105060.0,105050.0,0.04660865]
[1749894268179,7.00278487,105060.0,105050.0,0.03768187]
[1749894268385,7.00278487,105060.0,105050.0,0.04660865]
[1749894268599,7.00278487,105060.0,105050.0,0.02875508]
[1749894269014,7.00278487,105060.0,105050.0,0.03768187]
[1749894269629,7.00278487,105060.0,105050.0,0.02875492]
[1749894269790,7.00278487,105060.0,105050.0,0.02875476]
[1749894269984,7.00278487,105060.0,105050.0,0.04660768]
[1749894270208,7.00278487,105060.0,105050.0,0.03768119]
[1749894270469,7.00278487,105060.0,105050.0,0.0198283]
[1749894270684,7.00278487,105060.0,105050.0,0.02875622]
[1749894270912,7.00278487,105060.0,105050.0,0.03768423]
[1749894271145,7.00278487,105060.0,105050.0,0.0466124]
[1749894271603,7.00278487,105060.0,105050.0,0.03768437]
[1749894271829,7.00278487,105060.0,105050.0,0.0466124]
[1749894272477,7.00278487,105060.0,105050.0,0.04660293]
[1749894272688,7.00278487,105060.0,105050.0,0.0198283]
[1749894272900,7.00278487,105060.0,105050.0,0.0465982]
[1749894273144,7.00278487,105060.0,105050.0,0.0376749]
[1749894273350,7.00278487,105060.0,105050.0,0.0644982]
[1749894273554,7.00278487,105060.0,105050.0,0.0555749]
[1749894273790,7.00278487,105060.0,105050.0,0.0377283]
[1749894274005,7.00278487,105060.0,105050.0,0.0644982]
[1749894274634,7.00278487,105060.0,105050.0,0.0376749]
[1749894274838,7.00278487,105060.0,105050.0,0.0198283]
[1749894275034,7.00278487,105060.0,105050.0,0.0465982]
[1749894275245,7.00278487,105060.0,105050.0,0.0287516]
[1749894275448,7.00278487,105060.0,105050.0,0.0198283]
[1749894275655,7.00278487,105060.0,105050.0,0.0287516]
[1749894276056,7.00278487,105060.0,105050.0,0.0465982]
[1749894276487,7.00278487,105060.0,105050.0,0.0376749]
[1749894276687,7.00278487,105060.0,105050.0,0.0465982]
[1749894277142,7.00278487,105060.0,105050.0,0.0376749]
[1749894277351,7.00278487,105060.0,105050.0,0.0465982]
[1749894278363,7.00278487,105060.0,105050.0,0.0376749]
[1749894278582,7.00278487,105060.0,105050.0,0.0465982]
[1749894278743,7.04057211,105060.0,105050.0,0.0465982]
[1749894279158,7.04057211,105060.0,105050.0,0.03767526]
[1749894279432,7.04057211,105060.0,105050.0,0.04659872]
[1749894279667,7.04057211,105060.0,105050.0,0.02875176]
[1749894279873,7.04057211,105060.0,105050.0,0.03767523]
[1749894280090,7.04057211,105060.0,105050.0,0.04659869]
[1749894280305,7.04057211,105060.0,105050.0,0.0198283]
[1749894280553,7.04057211,105060.0,105050.0,0.04659869]
[1749894281085,7.04057211,105060.0,105050.0,0.03767523]
[1749894281309,7.04057211,105060.0,105050.0,0.0198283]
[1749894281715,7.04057211,105060.0,105050.0,0.03767523]
[1749894281920,7.04057211,105060.0,105050.0,0.04659869]
[1749894282352,7.04057211,105060.0,105050.0,0.03767523]
[1749894282575,7.04057211,105060.0,105050.0,0.02875176]
[1749894282986,7.04057211,105060.0,105050.0,0.04659869]
[1749894283194,7.04057211,105060.0,105050.0,0.0198283]
[1749894283414,7.04057211,105060.0,105050.0,0.02875176]
[1749894283627,7.04057211,105060.0,105050.0,0.0198283]
[1749894283839,7.00278487,105060.0,105050.0,0.0198283]
[1749894284258,7.00278487,105060.0,105050.0,0.04661288]
[1749894284466,7.00278487,105060.0,105050.0,0.02875649]
[1749894284675,7.00278487,105060.0,105050.0,0.03768469]
[1749894284886,7.00278487,105060.0,105050.0,0.04661288]
[1749894285321,7.09893409,105060.0,105050.0,0.0198283]
[1749894285518,7.09893409,105060.0,105050.0,0.04661288]
[1749894285827,7.09893409,105060.0,105050.0,0.04661076]
[1749894286011,7.00278487,105060.0,105050.0,0.04661076]
[1749894286263,7.00278487,105060.0,105050.0,0.03768045]
[1749894286473,7.00278487,105060.0,105050.0,0.04660652]
[1749894287320,7.00278487,105060.0,105050.0,0.03768045]
[1749894287531,7.00278487,105060.0,105050.0,0.04660652]
[1749894288366,7.00278487,105060.0,105050.0,0.0198283]
[1749894288580,7.00278487,105060.0,105050.0,0.04660652]
[1749894288761,7.00278487,105060.0,105050.0,0.02875437]
[1749894288971,7.00278487,105060.0,105050.0,0.04660652]
[1749894289254,7.00278487,105060.0,105050.0,0.0198283]
[1749894289464,7.00278487,105060.0,105050.0,0.03768045]
[1749894289709,7.00278487,105060.0,105050.0,0.04660652]
[1749894290577,7.00278487,105060.0,105050.0,0.02875437]
[1749894290792,7.00278487,105060.0,105050.0,0.04660652]
[1749894291015,7.00278487,105060.0,105050.0,0.03768045]
[1749894291269,7.00278487,105060.0,105050.0,0.04660652]
[1749894291633,7.00278487,105060.0,105050.0,0.02875437]
[1749894291842,7.00278487,105060.0,105050.0,0.04660652]
[1749894292047,7.00278487,105060.0,105050.0,0.0198283]
[1749894292259,7.00278487,105060.0,105050.0,0.03768045]
[1749894292477,7.00278487,105060.0,105050.0,0.04660652]
[1749894292690,7.00278487,105060.0,105050.0,0.03768045]
[1749894293108,7.00278487,105060.0,105050.0,0.04660652]
[1749894293479,7.00278487,105060.0,105050.0,0.03768045]
[1749894293698,7.00278487,105060.0,105050.0,0.02875437]
[1749894294068,7.00278487,105060.0,105050.0,0.04660652]
[1749894294285,7.00278487,105060.0,105050.0,0.03768045]
[1749894294493,7.00278487,105060.0,105050.0,0.04660652]
[1749894294710,7.00278487,105060.0,105050.0,0.03768045]
[1749894294915,7.00278487,105060.0,105050.0,0.02875437]
[1749894295134,7.03138287,105060.0,105050.0,0.04660652]
[1749894295349,7.23138287,105060.0,105050.0,0.03768045]
[1749894295559,7.25138287,105060.0,105050.0,0.06485433]
[1749894295775,7.05810287,105060.0,105050.0,0.0827064]
[1749894295989,7.05810287,105060.0,105050.0,0.06485433]
[1749894295990,7.15514111,105060.0,105050.0,0.06485433]
[1749894296202,7.15514111,105060.0,105050.0,0.05557984]
[1749894296420,7.15514111,105060.0,105050.0,0.06450561]
[1749894297356,7.15514111,105060.0,105050.0,0.04660561]
[1749894298022,7.15514111,105060.0,105050.0,0.0198283]
[1749894298228,7.15514111,105060.0,105050.0,0.04660561]
[1749894298659,7.15514111,105060.0,105050.0,0.03767984]
[1749894299092,7.15514111,105060.0,105050.0,0.04660267]
[1749894299301,7.15514111,105060.0,105050.0,0.03767788]
[1749894299514,7.15514111,105060.0,105050.0,0.04660267]
[1749894299719,7.15514111,105060.0,105050.0,0.02875309]
[1749894299929,7.15514111,105060.0,105050.0,0.04660267]
[1749894301926,7.15514111,105060.0,105050.0,0.02875309]
[1749894302146,6.96186111,105060.0,105050.0,0.04660267]
[1749894302368,1.5214907,105060.0,105050.0,0.07117529]
[1749894302591,2.07654311,105060.0,105050.0,0.0711751]
[1749894303022,2.07654311,105060.0,105050.0,0.07117508]
[1749894304583,2.07654311,105060.0,105050.0,0.0533283]
[1749894304792,2.07654311,105060.0,105050.0,0.07117508]
[1749894307493,2.07654311,105060.0,105050.0,0.0533283]
[1749894307909,2.07654311,105060.0,105050.0,0.07117508]
[1749894308318,2.07654311,105060.0,105050.0,0.0533283]
[1749894308521,2.07654311,105060.0,105050.0,0.07117508]
[1749894308932,2.07654311,105060.0,105050.0,0.0533283]
[1749894309150,2.07654311,105060.0,105050.0,0.07117508]
[1749894310510,2.07654311,105060.0,105050.0,0.07117512]
[1749894310916,2.07654311,105060.0,105050.0,0.0533283]
[1749894311129,2.07654311,105060.0,105050.0,0.07117516]
[1749894312980,2.07654311,105060.0,105050.0,0.07117412]
[1749894313188,2.07654311,105060.0,105050.0,0.0533283]
[1749894313390,2.07654311,105060.0,105050.0,0.07117412]
[1749894315679,2.07654311,105060.0,105050.0,0.071179]
[1749894315885,2.07654311,105060.0,105050.0,0.0533283]
[1749894316094,2.07654311,105060.0,105050.0,0.071179]
[1749894317637,2.07654311,105060.0,105050.0,0.0533283]
[1749894317868,2.07654311,105060.0,105050.0,0.071179]
[1749894318525,2.07654311,105060.0,105050.0,0.07117895]
[1749894318732,2.07654311,105060.0,105050.0,0.0533283]
[1749894318932,2.07654311,105060.0,105050.0,0.07117898]
[1749894319866,2.07654311,105060.0,105050.0,0.0533283]
[1749894320084,2.07654311,105060.0,105050.0,0.07117898]
[1749894320903,2.07654311,105060.0,105050.0,0.0533283]
[1749894321109,2.07654311,105060.0,105050.0,0.07117898]
[1749894321524,2.07654311,105060.0,105050.0,0.0533283]
[1749894321732,2.07654311,105060.0,105050.0,0.07117898]
[1749894322145,2.07654311,105060.0,105050.0,0.0533283]
[1749894322357,2.07654311,105060.0,105050.0,0.07117898]
[1749894323921,2.07654311,105060.0,105050.0,0.0533283]
[1749894324393,2.07654311,105060.0,105050.0,0.03767898]
[1749894325224,2.07654311,105060.0,105050.0,0.0198283]
[1749894325658,2.07654311,105060.0,105050.0,0.03767898]
[1749894326285,2.07654311,105060.0,105050.0,0.0198283]
[1749894326722,2.07654311,105060.0,105050.0,0.03767898]
[1749894326984,2.07654311,105060.0,105050.0,0.0198283]
[1749894327394,2.07654311,105060.0,105050.0,0.03767961]
[1749894328039,2.07654311,105060.0,105050.0,0.0198283]
[1749894328889,2.07654311,105060.0,105050.0,0.03767961]
[1749894329106,2.07654311,105060.0,105050.0,0.0198283]
[1749894329575,2.07654311,105060.0,105050.0,0.03768329]
[1749894330980,2.07654311,105060.0,105050.0,0.0198283]
[1749894331194,2.07654311,105060.0,105050.0,0.03768329]
[1749894332031,2.07654311,105060.0,105050.0,0.0198283]
[1749894332236,2.07654311,105060.0,105050.0,0.03768329]
[1749894332372,2.07654311,105060.0,105050.0,0.0198283]
[1749894333356,2.07654311,105060.0,105050.0,0.03768329]
[1749894333768,2.07654311,105060.0,105050.0,0.0198283]
[1749894333999,2.07654311,105060.0,105050.0,0.03768329]
[1749894334198,2.07654311,105060.0,105050.0,0.0198283]
[1749894334703,2.07654311,105060.0,105050.0,0.03768329]
[1749894335226,2.07654311,105060.0,105050.0,0.0198283]
[1749894335530,2.07654311,105060.0,105050.0,0.03768329]
[1749894336086,2.07654311,105060.0,105050.0,0.0198283]
[1749894336296,2.07654311,105060.0,105050.0,0.03768329]
[1749894337148,2.07654311,105060.0,105050.0,0.0198283]
[1749894337371,2.07654311,105060.0,105050.0,0.03768329]
[1749894337764,2.07654311,105060.0,105050.0,0.01985499]
[1749894338623,2.07654311,105060.0,105050.0,0.002]
[1749894338827,2.07654311,105060.0,105050.0,0.01985499]
[1749894339043,2.07654311,105060.0,105050.0,0.002]
[1749894339264,2.07654311,105060.0,105050.0,0.01985499]
[1749894339493,2.07654311,105060.0,105050.0,0.002]
[1749894339700,2.07654311,105060.0,105050.0,0.01985499]
[1749894340182,2.07654311,105060.0,105050.0,0.002]
[1749894340389,2.07654311,105060.0,105050.0,0.01985499]
[1749894341049,2.07654311,105060.0,105050.0,0.002]
[1749894341268,2.07654311,105060.0,105050.0,0.01985499]
[1749894341484,2.07654311,105060.0,105050.0,0.002]
[1749894341700,2.07654311,105060.0,105050.0,0.01985499]
[1749894342391,2.07654311,105060.0,105050.0,0.002]
[1749894342602,2.07654311,105060.0,105050.0,0.01985499]
[1749894342817,2.07654311,105060.0,105050.0,0.01985561]
[1749894343225,2.07654311,105060.0,105050.0,0.01985562]
[1749894343615,2.07654311,105060.0,105050.0,0.002]
[1749894343819,2.07654311,105060.0,105050.0,0.01985562]
[1749894343971,2.07654311,105060.0,105050.0,0.01985561]
[1749894344187,2.07654311,105060.0,105050.0,0.002]
[1749894344383,2.07654311,105060.0,105050.0,0.01985562]
[1749894344621,2.07654311,105060.0,105050.0,0.002]
[1749894344831,2.07654311,105060.0,105050.0,0.01985562]
[1749894346090,0.07170889,105060.0,105050.0,0.2646485]
[1749894346291,0.976772,105060.0,105050.0,0.26367885]
[1749894346643,0.81337427,105060.0,105050.0,0.26367862]
[1749894346863,0.96725427,105060.0,105050.0,0.26367862]
[1749894347087,0.96725427,105060.0,105050.0,0.26367819]
[1749894347518,0.95773627,105060.0,105050.0,0.25415909]
[1749894347734,0.74833241,105060.0,105050.0,0.25415909]
[1749894347944,1.49375222,105060.0,105050.0,0.23630471]
[1749894348165,0.93869981,105060.0,105050.0,0.23630471]
[1749894348579,0.9482179,105060.0,105050.0,0.25413225]
[1749894348804,0.9482179,105060.0,105050.0,0.23630471]
[1749894349262,0.9482179,105060.0,105050.0,0.25413225]
[1749894349479,1.50327031,105060.0,105050.0,0.23630471]
[1749894349689,1.50327031,105060.0,105050.0,0.25413225]
[1749894350144,1.49375222,105060.0,105050.0,0.05422754]
[1749894350355,1.49375222,105060.0,105050.0,0.25413234]
[1749894350573,0.93869981,105060.0,105050.0,0.2363048]
[1749894350804,0.93869981,105060.0,105050.0,0.2541328]
[1749894351011,0.93869981,105060.0,105050.0,0.25413288]
[1749894351241,1.49375222,105060.0,105050.0,0.25413288]
[1749894351495,0.93869981,105060.0,105050.0,0.26365206]
[1749894351823,0.93869981,105060.0,105050.0,0.24582398]
[1749894352082,0.93869981,105060.0,105050.0,0.26365206]
[1749894352601,0.93869981,105060.0,105050.0,0.24582398]
[1749894352841,0.93869981,105060.0,105050.0,0.26365206]
[1749894353081,0.93869981,105060.0,105050.0,0.24582398]
[1749894353308,0.93869981,105060.0,105050.0,0.26365206]
[1749894355348,0.93869981,105060.0,105050.0,0.25413288]
[1749894355575,1.49375222,105060.0,105050.0,0.25413288]
[1749894355796,1.49375222,105060.0,105050.0,0.2363048]
[1749894356004,1.49375222,105060.0,105050.0,0.25413288]
[1749894356214,1.49375222,105060.0,105050.0,0.2363048]
[1749894356433,1.49375222,105060.0,105050.0,0.25413288]
[1749894356630,1.49375222,105060.0,105050.0,0.2363048]
[1749894356855,1.49375222,105060.0,105050.0,0.25413288]
[1749894357074,0.93869981,105060.0,105050.0,0.2363048]
[1749894357282,0.93869981,105060.0,105050.0,0.25413287]
[1749894357496,0.93869981,105060.0,105050.0,0.2363048]
[1749894357743,0.93869981,105060.0,105050.0,0.25415971]
[1749894358156,1.49375222,105060.0,105050.0,0.05425491]
[1749894358819,1.49375222,105060.0,105050.0,0.0364]
[1749894359228,1.49375222,105060.0,105050.0,0.05425491]
[1749894359434,1.49375222,105060.0,105050.0,0.0364]
[1749894359676,1.49375222,105060.0,105050.0,0.05425491]
[1749894359895,0.93869981,105060.0,105050.0,0.0364]
[1749894360101,0.93869981,105060.0,105050.0,0.05425491]
[1749894360382,0.93869981,105060.0,105050.0,0.0364]
[1749894360595,1.49375222,105060.0,105050.0,0.01985491]
[1749894361394,1.49375222,105060.0,105050.0,0.002]
[1749894361623,1.49375222,105060.0,105050.0,0.01985491]
[1749894361828,1.49375222,105060.0,105050.0,0.002]
[1749894362028,1.49375222,105060.0,105050.0,0.01985491]
[1749894363446,1.49375222,105060.0,105050.0,0.002]
[1749894363645,1.49375222,105060.0,105050.0,0.01985491]
[1749894363855,1.49375222,105060.0,105050.0,0.002]
[1749894364071,1.49375222,105060.0,105050.0,0.01985491]
[1749894366272,1.49375222,105060.0,105050.0,0.002]
[1749894366676,1.49375222,105060.0,105050.0,0.01984723]
[1749894366805,1.49375222,105060.0,105050.0,0.002]
[1749894367007,1.49375222,105060.0,105050.0,0.01984723]
[1749894369609,1.49375222,105060.0,105050.0,0.002]
[1749894369851,1.49375222,105060.0,105050.0,0.01984723]
[1749894370295,1.53065222,105060.0,105050.0,0.01984731]
[1749894370717,1.53065222,105060.0,105050.0,0.01984763]
[1749894371147,1.53065222,105060.0,105050.0,0.002]
[1749894371402,1.53065222,105060.0,105050.0,0.01984763]
[1749894372006,1.53065222,105060.0,105050.0,0.002]
[1749894372470,1.53065222,105060.0,105050.0,0.01984763]
[1749894372686,1.53065222,105060.0,105050.0,0.002]
[1749894372965,1.53065222,105060.0,105050.0,0.01984763]
[1749894373960,1.53065222,105060.0,105050.0,0.002]
[1749894374172,1.53065222,105060.0,105050.0,0.01984763]
[1749894374489,1.53065222,105060.0,105050.0,0.002]